fUSD/lending_fUSD_20250521
["ID","MTS","AMOUNT","RATE_DAILY","PERIOD"]
[361868730,1747854645511,-7134.45055664,0.00037477,14]
[361868731,1747854645565,-102241.08134417,0.00037477,14]
[361868732,1747854645620,-1900.0,0.00037477,14]
[361868743,1747855137077,3807.87,0.00027397,120]
[361868744,1747855245299,-189.63586903,0.00015,2]
[361868745,1747855248525,-60.36413097,0.00015,2]
[361868746,1747855248549,-152.27616343,0.00032875,2]
[361868747,1747855250043,-174.66974394,0.00032875,2]
[361868748,1747855251507,-73.05409263,0.00032875,2]
[361868749,1747855251531,-153.27616343,0.00032876,5]
[361868750,1747855252989,-1.22613257,0.00032876,5]
[361868751,1747855253013,-154.385502,0.00032876,5]
[361868752,1747855253036,-177.604046,0.00032876,5]
[361868753,1747855253062,-13.11554155,0.00032876,5]
[361868755,1747855510834,-156.57,0.00012,2]
[361868756,1747855625434,-154.04028968,0.00011939,2]
[361868757,1747855628846,-192.6246387,0.00011939,2]
[361868758,1747855630905,-152.06784727,0.00011939,2]
[361868759,1747855632411,-159.04601172,0.00011939,2]
[361868761,1747855634591,-188.88614101,0.00011939,2]
[361868762,1747855637131,-199.06858681,0.00011939,2]
[361868763,1747855639763,-253.34586606,0.000116,4]
[361868764,1747855641295,-325.51681753,0.000116,4]
[361868765,1747855643456,-179.04751958,0.000116,4]
[361868766,1747855645530,-158.6911181,0.000116,4]
[361868767,1747855648103,-200.0,0.000116,4]
[361868768,1747855657366,-83.39867873,0.000116,4]
[361868769,1747855657393,-187.53825698,0.000117,4]
[361868770,1747855661343,-288.73543293,0.000117,4]
[361868771,1747855663939,-345.96991892,0.000117,4]
[361868772,1747855666422,-343.9501342,0.000117,4]
[361868773,1747855670212,-176.330591,0.000117,4]
[361868796,1747855672761,-270.01898777,0.000117,4]
[361868797,1747855676252,-200.0,0.000117,4]
[361868798,1747855679032,-308.94641731,0.000117,4]
[361868799,1747855683367,-151.92046913,0.000117,4]
[361868800,1747855686390,-126.58979176,0.000117,4]
[361868801,1747855686414,-109.39272835,0.0001175,2]
[361868802,1747855688983,-90.60727165,0.0001175,2]
[361868805,1747855727144,-232.858136,0.00011691,2]
[361868806,1747855727168,-56.7496629,0.000118,4]
[361868807,1747855729763,-305.46995701,0.000118,4]
[361868808,1747855731946,-183.53703632,0.000118,4]
[361868831,1747855831724,-3054.24334377,0.000118,4]
[361868832,1747855831734,-2648.49665623,0.000119,4]
[361868833,1747855831747,-598.30258062,0.000119,4]
[361868834,1747855831771,-1553.20076315,0.000119,4]
[361868835,1747855831782,-175.08589798,0.000119,2]
[361868836,1747855831792,-126.61333887,0.000119,2]
[361868837,1747855831804,-42.78324162,0.000119,2]
[361868838,1747855831814,-300.0,0.00011972,2]
[361868839,1747855831824,-500.0,0.00011973,2]
[361868840,1747855831834,-165.18779961,0.00011973,2]
[361868841,1747855831845,-500.0,0.00011973,2]
[361868842,1747855831855,-500.0,0.00011973,2]
[361868843,1747855831865,-500.0,0.00011973,2]
[361868844,1747855831875,-150.0,0.00011998,2]
[361868845,1747855831885,-203.48106747,0.00011999,2]
[361868846,1747855831896,-266.28735109,0.00011999,2]
[361868847,1747855831906,-194.57892026,0.00011999,2]
[361868848,1747855831916,-483.88680218,0.00011999,2]
[361868849,1747855831928,-500.0,0.00011999,2]
[361868850,1747855831938,-279.35154255,0.00011999,2]
[361868851,1747855831948,-500.0,0.00011999,2]
[361868852,1747855831958,-486.30824869,0.00011999,2]
[361868853,1747855831968,-500.0,0.00011999,2]
[361868854,1747855831978,-500.0,0.00011999,2]
[361868856,1747855831988,-500.0,0.00011999,2]
[361868858,1747855831998,-500.0,0.00011999,2]
[361868861,1747855832009,-500.0,0.00011999,2]
[361868863,1747855832018,-500.0,0.00011999,2]
[361868864,1747855832028,-500.0,0.00011999,2]
[361868865,1747855832038,-500.0,0.00011999,2]
[361868866,1747855832048,-500.0,0.00011999,2]
[361868867,1747855832058,-500.0,0.00011999,2]
[361868868,1747855832068,-500.0,0.00011999,2]
[361868869,1747855832078,-500.0,0.00011999,2]
[361868870,1747855832088,-500.0,0.00011999,2]
[361868871,1747855832097,-500.0,0.00011999,2]
[361868872,1747855832108,-500.0,0.00011999,2]
[361868873,1747855832118,-500.0,0.00011999,2]
[361868874,1747855832127,-500.0,0.00011999,2]
[361868875,1747855832138,-500.0,0.00011999,2]
[361868877,1747855832147,-500.0,0.00011999,2]
[361868879,1747855832157,-500.0,0.00011999,2]
[361868880,1747855832167,-500.0,0.00011999,2]
[361868881,1747855832178,-500.0,0.00011999,2]
[361868882,1747855832187,-500.0,0.00011999,2]
[361868883,1747855832197,-500.0,0.00011999,2]
[361868885,1747855832207,-500.0,0.00011999,2]
[361868887,1747855832217,-500.0,0.00011999,2]
[361868888,1747855832226,-500.0,0.00011999,2]
[361868889,1747855832239,-500.0,0.00011999,2]
[361868890,1747855832249,-500.0,0.00011999,2]
[361868891,1747855832260,-500.0,0.00011999,2]
[361868892,1747855832270,-500.0,0.00011999,2]
[361868893,1747855832281,-500.0,0.00011999,2]
[361868894,1747855832291,-500.0,0.00011999,2]
[361868895,1747855832301,-500.0,0.00011999,2]
[361868896,1747855832312,-500.0,0.00011999,2]
[361868897,1747855832322,-500.0,0.00011999,2]
[361868898,1747855832332,-500.0,0.00011999,2]
[361868899,1747855832342,-500.0,0.00011999,2]
[361868900,1747855832352,-539.15231426,0.00011999,2]
[361868901,1747855832362,-500.0,0.00011999,2]
[361868902,1747855832372,-500.0,0.00011999,2]
[361868903,1747855832382,-500.0,0.00011999,2]
[361868904,1747855832392,-500.0,0.00011999,2]
[361868905,1747855832402,-500.0,0.00011999,2]
[361868906,1747855832411,-500.0,0.00011999,2]
[361868907,1747855832422,-500.0,0.00011999,2]
[361868908,1747855832432,-500.0,0.00011999,2]
[361868909,1747855832442,-437462.68384282,0.00012,2]
[361868910,1747855832464,-450.0,0.00012,2]
[361868911,1747855832480,-286.92376616,0.00012,2]
[361868912,1747855832492,-401764.39066227,0.00012,2]
[361868913,1747855832504,-5023.00535554,0.00012,2]
[361868914,1747855832579,-1845.10366259,0.00012,2]
[361868915,1747855832592,-1437.68072069,0.00012,2]
[361868916,1747855832604,-19542.52085599,0.00012,2]
[361868917,1747855832616,-302.0,0.00012,2]
[361868918,1747855832628,-2445.75038882,0.00012,2]
[361868919,1747855832690,-742.41129901,0.00012,2]
[361868920,1747855832703,-5742.71687691,0.00012,2]
[361868921,1747855832715,-856.5879686,0.00012,2]
[361868922,1747855832727,-1693.6999999,0.00012,2]
[361868923,1747855832739,-6346.50000008,0.00012,2]
[361868924,1747855832772,-1370.31381204,0.00012,2]
[361868925,1747855832784,-586.98352101,0.00012,2]
[361868932,1747855837642,-176.0,0.00011972,2]
[361868933,1747855837654,-448.88728,0.00012,2]
[361868934,1747855837666,-277.595,0.00012,2]
[361868935,1747855837750,-4679.44302802,0.00012,2]
[361868936,1747855837762,-1771.25319966,0.00012,2]
[361868937,1747855837818,-1563.46598488,0.00012,2]
[361868938,1747855837831,-1222.56000018,0.00012,2]
[361868939,1747855837843,-348.95980345,0.00012,2]
[361868940,1747855837930,-478.6878508,0.00012,2]
[361868941,1747855837942,-584.78514729,0.00012,2]
[361868942,1747855837954,-1299.73066578,0.00012,2]
[361868943,1747855837966,-7416.66727173,0.00012,2]
[361868944,1747855837985,-463.28746673,0.00012,2]
[361868956,1747855839776,-3537.39828158,0.00012,2]
[361868957,1747855839789,-547.0,0.00012,2]
[361868958,1747855839801,-2910.02301602,0.00012,2]
[361868959,1747855839995,-4452.49717128,0.00012,2]
[361868960,1747855840007,-9594.82267057,0.00012,2]
[361868961,1747855840028,-6773.33333953,0.00012,2]
[361868962,1747855840041,-500.0,0.00012,2]
[361868963,1747855840089,-1352.25,0.00012,2]
[361868964,1747855840123,-235546.01561669,0.00012,2]
[361868965,1747855840135,-431.70372,0.00012,2]
[361868967,1747855840508,-130.68884039,0.00012,2]
[361868968,1747855840521,-331.11326183,0.00012,2]
[361868969,1747855840533,-1729.85740307,0.00012,2]
[361868970,1747855840562,-60091.22183938,0.00012,2]
[361868974,1747855842907,-263.17336009,0.00012,2]
[361868975,1747855842920,-4970.45252974,0.00012,2]
[361868976,1747855842931,-302.0,0.00012,2]
[361868977,1747855842963,-39660.03882731,0.00012,2]
[361868978,1747855843125,-577.13,0.00012,2]
[361868979,1747855843181,-15280.11589186,0.00012,2]
[361868992,1747856606495,790.53187201,0.00012,7]
[361868993,1747856669308,98009.46812799,0.00012,7]
[361868994,1747856669333,100000.0,0.00012,7]
[361868995,1747856669357,100000.0,0.00012,7]
[361868996,1747856669385,100000.0,0.00012,7]
[361868997,1747856669410,22781.450378,0.00012,7]
[361868998,1747856678743,150.0,0.00012,5]
[361868999,1747856733622,592.89890401,0.00012,7]
[361869000,1747856779337,499.5,0.00027397,120]
[361869001,1747856797874,76475.65071799,0.00012,7]
[361869002,1747856832940,47182.88,0.00011473,2]
[361869004,1747856846131,250.0,0.00011423,2]
[361869005,1747856866976,-1963.314798,0.00011584,2]
[361869006,1747856867003,-168.91,0.00011642,2]
[361869007,1747856867028,-200.0,0.00011671,2]
[361869008,1747856867054,-155.63180806,0.000117,2]
[361869009,1747856867079,-200.0,0.000117,2]
[361869010,1747856867105,-1600.0,0.000117,4]
[361869011,1747856867130,-200.0,0.00011702,2]
[361869012,1747856867154,-2804.85,0.00011717,2]
[361869013,1747856867179,-1852.42,0.0001179,2]
[361869014,1747856867203,-155.63180806,0.000118,2]
[361869015,1747856867228,-1022.75953335,0.000118,2]
[361869016,1747856867253,-3300.0,0.000118,4]
[361869017,1747856867278,-799.68,0.00011868,2]
[361869018,1747856867307,-1556.986,0.000119,2]
[361869019,1747856867332,-172.52503164,0.000119,2]
[361869020,1747856867357,-314.15296628,0.000119,2]
[361869021,1747856867381,-561.95875827,0.000119,2]
[361869022,1747856867406,-16408.88009683,0.000119,2]
[361869023,1747856867431,-1328.05476037,0.000119,2]
[361869024,1747856867456,-175.08589798,0.000119,2]
[361869025,1747856867481,-960.32611844,0.000119,2]
[361869026,1747856867507,-5000.0,0.000119,4]
[361869027,1747856867533,-5348.0,0.00011973,2]
[361869028,1747856867558,-500.0,0.00011973,2]
[361869029,1747856867582,-166.45245671,0.00011973,2]
[361869030,1747856867610,-500.65684586,0.00011973,2]
[361869031,1747856867636,-500.0,0.00011973,2]
[361869032,1747856867662,-500.0,0.00011973,2]
[361869033,1747856867690,-499.1895197,0.00011973,2]
[361869034,1747856867716,-288.33,0.0001199,2]
[361869035,1747856867742,-288.33,0.0001199,2]
[361869036,1747856867769,-288.33,0.0001199,2]
[361869037,1747856867797,-288.33,0.0001199,2]
[361869038,1747856867823,-288.33,0.0001199,2]
[361869039,1747856867850,-288.33,0.0001199,2]
[361869040,1747856867877,-288.33,0.0001199,2]
[361869041,1747856867901,-288.33,0.0001199,2]
[361869042,1747856867926,-288.33,0.0001199,2]
[361869043,1747856867951,-288.33,0.0001199,2]
[361869044,1747856867978,-239117.5381615,0.00012,7]
[361869045,1747856868003,-444.67417801,0.00012,7]
[361869046,1747856868031,-58639.02126094,0.00012,2]
[361869047,1747856893403,-201.14673416,0.00011999,2]
[361869048,1747856893430,-199798.85326584,0.00012,2]
[361869049,1747856935174,-309.35361539,0.000119,2]
[361869050,1747856935198,-175.08589798,0.000119,2]
[361869051,1747856935226,-500.0,0.00011999,2]
[361869052,1747856935254,-500.0,0.00011999,2]
[361869053,1747856935285,-500.0,0.00011999,2]
[361869054,1747856935311,-500.0,0.00011999,2]
[361869055,1747856935336,-500.0,0.00011999,2]
[361869056,1747856935362,-500.0,0.00011999,2]
[361869057,1747856935389,-500.0,0.00011999,2]
[361869058,1747856935414,-500.0,0.00011999,2]
[361869059,1747856935440,-187.34593923,0.00011999,2]
[361869060,1747856935466,-500.0,0.00011999,2]
[361869061,1747856935492,-500.0,0.00011999,2]
[361869062,1747856935518,-500.0,0.00011999,2]
[361869063,1747856935544,-500.0,0.00011999,2]
[361869064,1747856935570,-500.0,0.00011999,2]
[361869065,1747856935596,-500.0,0.00011999,2]
[361869066,1747856935624,-500.0,0.00011999,2]
[361869067,1747856935651,-500.0,0.00011999,2]
[361869068,1747856935678,-500.0,0.00011999,2]
[361869069,1747856935705,-500.0,0.00011999,2]
[361869070,1747856935731,-500.0,0.00011999,2]
[361869071,1747856935757,-500.0,0.00011999,2]
[361869072,1747856935784,-500.0,0.00011999,2]
[361869073,1747856935812,-500.0,0.00011999,2]
[361869074,1747856935838,-500.0,0.00011999,2]
[361869075,1747856935866,-500.0,0.00011999,2]
[361869076,1747856935895,-500.0,0.00011999,2]
[361869077,1747856935922,-500.0,0.00011999,2]
[361869078,1747856935950,-500.0,0.00011999,2]
[361869079,1747856935976,-500.0,0.00011999,2]
[361869080,1747856936002,-500.0,0.00011999,2]
[361869081,1747856936028,-500.0,0.00011999,2]
[361869082,1747856936054,-500.0,0.00011999,2]
[361869083,1747856936081,-500.0,0.00011999,2]
[361869084,1747856936109,-500.0,0.00011999,2]
[361869085,1747856936135,-500.0,0.00011999,2]
[361869086,1747856936164,-500.0,0.00011999,2]
[361869087,1747856936190,-500.0,0.00011999,2]
[361869088,1747856936214,-246.43698709,0.00011999,2]
[361869089,1747856936240,-500.0,0.00011999,2]
[361869090,1747856936267,-500.0,0.00011999,2]
[361869091,1747856936293,-500.0,0.00011999,2]
[361869092,1747856936319,-500.0,0.00011999,2]
[361869093,1747856936345,-500.0,0.00011999,2]
[361869094,1747856936372,-500.0,0.00011999,2]
[361869095,1747856936400,-500.0,0.00011999,2]
[361869096,1747856936428,-500.0,0.00011999,2]
[361869097,1747856936453,-500.0,0.00011999,2]
[361869098,1747856936479,-76581.77756031,0.00012,2]
[361869099,1747856940689,-272.0047,0.000119,2]
[361869100,1747856940717,-93727.9953,0.00012,2]
[361869112,1747856970098,-282.73766967,0.000119,2]
[361869113,1747856970128,-82717.26233033,0.00012,2]
[361869133,1747857031844,-834.89468261,0.000119,2]
[361869134,1747857031859,-300.0,0.00011999,2]
[361869135,1747857031869,-243668.10664542,0.00012,2]
[361869136,1747857031889,-1691.1728,0.00012,2]
[361869137,1747857031902,-106858.24266557,0.00012,2]
[361869138,1747857031917,-113154.09239232,0.00012,2]
[361869139,1747857031952,-3466.9925743,0.00012,2]
[361869140,1747857032055,-1063.44509394,0.00012,2]
[361869141,1747857032067,-26237.5,0.00012,2]
[361869142,1747857032108,-339.17912446,0.00012,2]
[361869143,1747857032121,-2729.8716691,0.00012,2]
[361869169,1747857038491,-1759.1,0.00012,2]
[361869170,1747857038514,-1025.3,0.00012,2]
[361869171,1747857038526,-1428.37905058,0.00012,2]
[361869172,1747857038545,-6611.7499408,0.00012,2]
[361869173,1747857038647,-129324.6511631,0.00012,2]
[361869174,1747857038666,-1138.66621302,0.00012,2]
[361869175,1747857038679,-709.08266212,0.00012,2]
[361869176,1747857038700,-1313.34246396,0.00012,2]
[361869190,1747857040815,-29205.32826281,0.00012,2]
[361869191,1747857040834,-1650.05512954,0.00012,2]
[361869192,1747857040845,-4316.23010528,0.00012,2]
[361869193,1747857040856,-606.05829084,0.00012,2]
[361869194,1747857040870,-6167.3096582,0.00012,2]
[361869195,1747857040884,-3832.6903418,0.00012,2]
[361869196,1747857040896,-132041.87101288,0.00012,2]
[361869197,1747857040905,-120334.65672929,0.00012,2]
[361869198,1747857040917,-999.9536652,0.00012,2]
[361869199,1747857041023,-5932.81606621,0.00012,2]
[361869200,1747857041051,-16201.78172416,0.00012,2]
[361869201,1747857041063,-500.0,0.00012,2]
[361869202,1747857041074,-1627.65,0.00012,2]
[361869203,1747857041085,-1950.0,0.00012,2]
[361869204,1747857041101,-108186.74986707,0.00012,2]
[361869205,1747857041115,-1000.0,0.00012,2]
[361869206,1747857041128,-5020.83828484,0.00012,2]
[361869207,1747857041139,-42908.35883907,0.00012,2]
[361869208,1747857041151,-1781.137005,0.00012,2]
[361869209,1747857041163,-1363.68834929,0.00012,2]
[361869210,1747857041174,-4592.27815191,0.00012,2]
[361869211,1747857041185,-1814.74099537,0.00012,2]
[361869212,1747857041196,-8456.29292692,0.00012,2]
[361869213,1747857041220,-9578.8693,0.00012,2]
[361869241,1747857043102,-169.39658048,0.000119,2]
[361869242,1747857043112,-795.20877083,0.00012,2]
[361869243,1747857043124,-12074.1303836,0.00012,2]
[361869250,1747857045836,-156444.1402707,0.00012,2]
[361869251,1747857045847,-79106.33374809,0.00012,2]
[361869255,1747857083022,170.42,9.518e-05,2]
[361869256,1747857083216,170.42,0.00010708,2]
[361869257,1747857240858,1217.62,9.605e-05,2]
[361869259,1747857364043,737.65,0.00011392,2]
[361869260,1747857364226,737.65,0.00011395,2]
[361869261,1747857364466,737.65,0.00011398,2]
[361869262,1747857364675,737.65,0.00011401,2]
[361869263,1747857369066,737.65,0.00011404,2]
[361869264,1747857369245,737.65,0.00011407,2]
[361869265,1747857369449,737.65,0.0001141,2]
[361869266,1747857369654,737.65,0.00011413,2]
[361869267,1747857369891,737.65,0.00011416,2]
[361869268,1747857370120,737.65,0.00011419,2]
[361869269,1747857370338,737.65,0.00011422,2]
[361869270,1747857370814,737.65,0.00011425,2]
[361869271,1747857371112,737.65,0.00011428,2]
[361869272,1747857371330,737.65,0.00011431,2]
[361869273,1747857372119,737.65,0.00011434,2]
[361869274,1747857372200,737.65,0.00011437,2]
[361869275,1747857372882,737.65,0.0001144,2]
[361869276,1747857372968,737.65,0.00011443,2]
[361869277,1747857373054,737.65,0.00011446,2]
[361869278,1747857373122,737.65,0.00011449,2]
[361869279,1747857400019,165.54,0.00011327,2]
[361869280,1747857414860,659.75,0.00011262,2]
[361869281,1747857427478,628.79,0.00011297,2]
[361869282,1747857429859,2442.35,0.00011297,2]
[361869283,1747857444763,550.5,0.00011297,2]
[361869284,1747857490083,514.27,0.0001133,2]
[361869285,1747857592522,2588.93,0.000113,2]
[361869286,1747857658522,151.0,0.00011449,2]
[361869287,1747857658870,151.0,0.00011449,2]
[361869288,1747857659232,918.532276,0.00011443,2]
[361869289,1747857712685,9797.33,0.00011398,2]
[361869290,1747857737170,202.67,0.00011272,2]
[361869291,1747857737193,1603.95,0.00011272,2]
[361869292,1747857774867,1029.63,0.00011314,2]
[361869293,1747857833638,446.44,0.00011276,2]
[361869294,1747857879321,2374.97,0.00011262,2]
[361869295,1747857937267,250.0,0.0001119,2]
[361869296,1747857944608,4246.79,0.0001119,2]
[361869297,1747857957246,48.22,0.00011164,2]
[361869298,1747857957268,10000.0,0.00011164,2]
[361869299,1747857957289,10000.0,0.00011164,2]
[361869300,1747857957310,3851.78,0.00011164,2]
[361869301,1747857959365,151.0,0.00011449,2]
[361869302,1747857960213,151.0,0.00011449,2]
[361869303,1747857960930,151.0,0.00011449,2]
[361869304,1747857961662,151.0,0.00011449,2]
[361869305,1747857962469,190.79060033,0.00011449,2]
[361869306,1747857970416,150.0,0.00011164,7]
[361869307,1747857996754,200.0,0.00011198,2]
[361869308,1747858005438,5153.42939967,0.00011198,2]
[361869309,1747858005459,183.76060033,0.00011198,2]
[361869310,1747858018619,9816.23939967,0.00011198,2]
[361869311,1747858018643,10000.0,0.00011198,2]
[361869312,1747858018666,10000.0,0.00011198,2]
[361869313,1747858018689,10000.0,0.00011198,2]
[361869314,1747858018712,10000.0,0.00011198,2]
[361869315,1747858018734,926.84060033,0.00011198,2]
[361869316,1747858031484,154.11966971,0.00011464,2]
[361869321,1747858136328,500.0,0.00011233,2]
[361869405,1747858180451,4000.0,0.00011233,2]
[361869414,1747858232013,-191.58186631,0.00011501,2]
[361869415,1747858232025,-250.0,0.00011504,2]
[361869416,1747858232037,-200.0,0.00011508,2]
[361869417,1747858232047,-200.0,0.00011535,2]
[361869418,1747858232057,-808.83820267,0.00011626,2]
[361869419,1747858232067,-446.44,0.00011699,2]
[361869420,1747858232081,-1000.0,0.00011747,2]
[361869421,1747858232091,-1217.62,0.00011869,2]
[361869422,1747858232101,-170.42,0.00011898,2]
[361869423,1747858232113,-150.0,0.00011898,2]
[361869424,1747858232124,-154.11966971,0.000119,2]
[361869425,1747858232134,-500.0,0.00011973,2]
[361869426,1747858232144,-252.90102083,0.00011999,3]
[361869427,1747858232155,-150.0,0.00011999,2]
[361869428,1747858232165,-48957.30150387,0.00012,2]
[361869429,1747858232181,-762.17542217,0.00012,2]
[361869430,1747858232193,-91630.36615013,0.00012,2]
[361869431,1747858232202,-200.0,0.00012,2]
[361869432,1747858232213,-200.0,0.00012,2]
[361869433,1747858232223,-1000.0,0.00012,2]
[361869434,1747858232234,-1000.0,0.00012,2]
[361869435,1747858232249,-1025.0,0.00012,2]
[361869436,1747858232260,-1000.0,0.00012,2]
[361869437,1747858232270,-1000.0,0.00012,2]
[361869438,1747858232280,-1000.0,0.00012,2]
[361869439,1747858232290,-1000.0,0.00012,2]
[361869440,1747858232300,-1000.0,0.00012,2]
[361869441,1747858232310,-200.0,0.00012,2]
[361869442,1747858232320,-197.56,0.00012047,2]
[361869443,1747858232329,-169.52734503,0.00012062,2]
[361869444,1747858232339,-200.0,0.0001212,2]
[361869445,1747858232350,-200.0,0.0001212,2]
[361869446,1747858232360,-200.0,0.0001212,2]
[361869447,1747858232371,-446.44,0.00012122,2]
[361869448,1747858232381,-1444.56,0.00012125,2]
[361869449,1747858232391,-176.61,0.0001214,2]
[361869450,1747858232401,-176.61,0.0001214,2]
[361869451,1747858232416,-136718.03810575,0.0001215,2]
[361869452,1747858232434,-5895.15198333,0.0001215,2]
[361869453,1747858232447,-3088.92554577,0.0001215,2]
[361869454,1747858232459,-720.63172157,0.0001215,2]
[361869455,1747858232472,-627.68208494,0.0001215,2]
[361869456,1747858232504,-27340.4320889,0.0001215,2]
[361869457,1747858232514,-176.61,0.00012163,2]
[361869458,1747858232524,-320.69334249,0.00012173,2]
[361869459,1747858232536,-500.0,0.00012173,2]
[361869460,1747858232546,-161.44594144,0.00012173,2]
[361869461,1747858232557,-500.0,0.00012173,2]
[361869462,1747858232567,-500.0,0.00012173,2]
[361869463,1747858232576,-612.64823099,0.00012173,2]
[361869464,1747858232587,-500.0,0.00012173,2]
[361869465,1747858232597,-500.0,0.00012173,2]
[361869466,1747858232607,-500.0,0.00012173,2]
[361869467,1747858232617,-200.0,0.00012241,2]
[361869468,1747858232626,-200.0,0.00012241,2]
[361869469,1747858232637,-200.0,0.00012241,2]
[361869470,1747858232647,-200.0,0.00012364,2]
[361869471,1747858232657,-200.0,0.00012364,2]
[361869472,1747858232667,-200.0,0.00012364,2]
[361869473,1747858232677,-165.54,0.0001246,2]
[361869474,1747858232688,-200.0,0.00012487,2]
[361869475,1747858232698,-363.92,0.00012521,2]
[361869476,1747858232708,-446.44,0.00012545,2]
[361869477,1747858232718,-164.88,0.00012615,2]
[361869478,1747858232729,-200.0,0.00012651,2]
[361869479,1747858232739,-250.0,0.00012651,2]
[361869480,1747858232749,-200.0,0.00012651,2]
[361869481,1747858232760,-250.0,0.00012651,2]
[361869482,1747858232771,-200.0,0.00012651,2]
[361869483,1747858232782,-500.0,0.00012651,2]
[361869484,1747858232792,-659.75,0.0001267,2]
[361869485,1747858232802,-500.0,0.00012678,2]
[361869486,1747858232813,-19431.03341463,0.00012694,2]
[361869487,1747858232823,-500.0,0.00012706,2]
[361869488,1747858232833,-1000.0,0.00012721,2]
[361869489,1747858232843,-1000.0,0.00012721,2]
[361869490,1747858232866,-1000.0,0.00012721,2]
[361869491,1747858232878,-504.44490417,0.00012721,2]
[361869492,1747858232889,-150.0,0.00012721,2]
[361869493,1747858232900,-150.0,0.00012721,2]
[361869494,1747858232912,-150.0,0.00012721,2]
[361869495,1747858232924,-150.0,0.00012721,2]
[361869496,1747858232935,-500.0,0.00012733,2]
[361869497,1747858232946,-150.0,0.00012748,2]
[361869498,1747858232957,-150.0,0.00012748,2]
[361869499,1747858232969,-500.0,0.00012761,2]
[361869500,1747858232979,-200.0,0.00012776,2]
[361869501,1747858232991,-150.0,0.00012776,2]
[361869502,1747858233002,-500.0,0.00012788,2]
[361869503,1747858233014,-462.74148025,0.00012794,2]
[361869504,1747858233025,-500.0,0.00012794,2]
[361869505,1747858233037,-500.0,0.00012794,2]
[361869506,1747858233048,-500.0,0.00012794,2]
[361869507,1747858233059,-500.0,0.00012794,2]
[361869508,1747858233073,-500.0,0.00012794,2]
[361869509,1747858233086,-531.24495146,0.00012794,2]
[361869510,1747858233097,-500.0,0.00012794,2]
[361869511,1747858233108,-500.0,0.00012794,2]
[361869512,1747858233120,-500.0,0.00012794,2]
[361869513,1747858233131,-500.0,0.00012794,2]
[361869514,1747858233142,-500.0,0.00012794,2]
[361869515,1747858233156,-500.0,0.00012794,2]
[361869516,1747858233168,-500.0,0.00012794,2]
[361869517,1747858233179,-500.0,0.00012794,2]
[361869518,1747858233190,-500.0,0.00012794,2]
[361869519,1747858233201,-500.0,0.00012794,2]
[361869520,1747858233213,-500.0,0.00012794,2]
[361869521,1747858233224,-500.0,0.00012794,2]
[361869522,1747858233235,-500.0,0.00012794,2]
[361869523,1747858233247,-500.0,0.00012794,2]
[361869524,1747858233258,-500.0,0.00012794,2]
[361869525,1747858233269,-500.0,0.00012794,2]
[361869526,1747858233281,-500.0,0.00012794,2]
[361869527,1747858233299,-500.0,0.00012794,2]
[361869528,1747858233311,-500.0,0.00012794,2]
[361869529,1747858233323,-500.0,0.00012794,2]
[361869530,1747858233335,-500.0,0.00012794,2]